bitfinex/quotes_SOLUSD_20250416
["timestamp","ask_amount","ask_price","bid_price","bid_amount"]
[1744790987301,26.0,124.15,124.11,34.8508736]
[1744790987475,80.8508736,124.15,124.08,8.05931656]
[1744790987677,80.8508736,124.15,124.05,40.3037407]
[1744790987678,26.0,124.12,124.05,20.15191143]
[1744790987907,80.8508736,124.13,124.08,34.8508736]
[1744790988088,80.8508736,124.13,124.09,34.8508736]
[1744790988089,13.66,124.12,124.09,34.8508736]
[1744790988806,13.66,124.12,124.1,34.8508736]
[1744790989796,33.66,124.12,124.09,34.8508736]
[1744790989995,13.66,124.12,124.1,34.8508736]
[1744790990191,13.66,124.12,124.11,34.8508736]
[1744790990692,20.0,124.16,124.11,69.7017472]
[1744790990898,13.66,124.17,124.15,34.8508736]
[1744790991099,39.66,124.17,124.15,34.8508736]
[1744790991396,13.66,124.17,124.15,34.8508736]
[1744790991812,26.0,124.16,124.11,34.8508736]
[1744790992014,26.0,124.16,124.14,34.8508736]
[1744790993602,26.0,124.16,124.13,34.8508736]
[1744790993819,80.8508736,124.16,124.1,34.8508736]
[1744790994114,20.0,124.14,124.1,34.8508736]
[1744790994321,20.0,124.14,124.11,34.8508736]
[1744790994488,20.0,124.14,124.1,8.0578416]
[1744790994683,0.063,124.17,124.13,34.8508736]
[1744790995001,0.063,124.17,124.16,34.8508736]
[1744790996709,0.063,124.17,124.16,42.90499731]
[1744790997117,13.66,124.2,124.16,77.75587091]
[1744790997296,26.0,124.23,124.19,34.8508736]
[1744790997499,26.0,124.23,124.22,34.8508736]
[1744790997700,13.463,124.24,124.22,34.8508736]
[1744790997905,13.463,124.24,124.23,34.8508736]
[1744790998891,13.463,124.24,124.15,20.13657711]
[1744790999115,13.463,124.24,124.21,23.5273164]
[1744790999718,46.0,124.23,124.18,23.5273164]
[1744790999893,20.0,124.21,124.18,23.5273164]
[1744791000702,20.0,124.21,124.19,23.5273164]
[1744791001017,46.0,124.23,124.2,23.5273164]
[1744791001224,46.0,124.23,124.19,23.5273164]
[1744791001798,46.0,124.23,124.2,23.5273164]
[1744791002126,46.0,124.23,124.21,23.5273164]
[1744791002422,54.04968061,124.23,124.19,23.5273164]
[1744791002616,69.5273164,124.23,124.18,23.5273164]
[1744791002818,77.57691244,124.23,124.18,23.5273164]
[1744791003021,26.0,124.2,124.11,62.32014285]
[1744791003321,26.0,124.2,124.16,23.5273164]
[1744791003500,26.0,124.2,124.17,23.5273164]
[1744791004114,13.4,124.19,124.17,23.5273164]
[1744791004309,13.4,124.19,124.15,23.5273164]
[1744791004310,20.0,124.18,124.15,23.5273164]
[1744791005005,20.0,124.18,124.16,23.5273164]
[1744791005210,20.0,124.18,124.15,23.5273164]
[1744791006824,13.4,124.19,124.16,23.5273164]
[1744791007323,20.0,124.18,124.15,23.5273164]
[1744791007629,20.0,124.18,124.16,23.5273164]
[1744791008219,20.0,124.18,124.15,23.5273164]
[1744791008822,20.0,124.18,124.11,8.05721889]
[1744791009015,43.5273164,124.18,124.13,23.5273164]
[1744791009328,51.58019112,124.18,124.11,8.05721889]
[1744791009525,51.58019112,124.18,124.07,52.70905745]
[1744791009526,20.0,124.13,124.07,52.70905745]
[1744791009828,20.0,124.13,124.09,23.5273164]
[1744791010323,20.0,124.13,124.1,23.5273164]
[1744791010623,20.0,124.13,124.07,26.0]
[1744791010824,20.0,124.13,124.09,23.5273164]
[1744791011027,33.4,124.13,124.1,23.5273164]
[1744791011825,23.5273164,124.12,124.08,23.5273164]
[1744791012009,23.5273164,124.12,124.07,23.5273164]
[1744791012208,20.0,124.09,124.02,0.03]
[1744791012415,20.0,124.09,124.05,23.5273164]
[1744791012719,13.4,124.08,124.04,23.5273164]
[1744791012914,36.9273164,124.08,124.03,23.5273164]
[1744791013108,13.4,124.08,124.04,23.5273164]
[1744791013609,20.0,124.07,124.02,0.03]
[1744791013807,43.5273164,124.07,124.02,23.5573164]
[1744791014005,20.0,124.07,124.03,23.5273164]
[1744791014316,20.0,124.07,124.04,23.5273164]
[1744791015129,13.4,124.08,124.05,23.5273164]
[1744791015628,13.4,124.08,124.04,23.5273164]
[1744791016513,20.0,124.07,124.03,23.5273164]
[1744791017529,13.4,124.08,124.04,23.5273164]
[1744791017728,13.4,124.08,124.05,23.5273164]
[1744791017930,13.4,124.08,124.04,23.5273164]
[1744791018137,36.9273164,124.08,124.03,23.5273164]
[1744791018309,43.5273164,124.07,124.03,23.5273164]
[1744791018822,43.5273164,124.07,124.02,0.03]
[1744791018823,51.58755918,124.07,124.02,23.5573164]
[1744791019022,49.5273164,124.06,124.02,0.03]
[1744791019616,26.0,124.06,124.02,23.5573164]
[1744791021512,13.4,124.08,124.05,23.5273164]
[1744791021732,13.4,124.08,124.06,23.5273164]
[1744791021932,13.4,124.08,124.05,23.5273164]
[1744791022435,69.5273164,124.07,124.02,23.5573164]
[1744791022617,20.0,124.05,124.02,0.03]
[1744791023443,43.5273164,124.05,124.02,0.03]
[1744791024323,46.0,124.03,124.02,0.03]
[1744791024538,59.4,124.03,124.02,0.03]
[1744791024739,33.4,124.03,124.02,0.03]
[1744791025138,33.4,124.03,123.89,0.03]
[1744791025139,20.0,123.93,123.89,0.03]
[1744791025338,6.9932,123.99,123.89,0.03]
[1744791025339,20.0,123.9,123.89,0.03]
[1744791025641,83.4673164,123.92,123.89,0.03]
[1744791025845,59.94,123.92,123.89,0.03]
[1744791026357,69.5273164,123.9,123.89,0.03]
[1744791027442,77.59834142,123.9,123.89,0.03]
[1744791027737,96.24799028,123.9,123.89,0.03]
[1744791027939,33.94,123.92,123.89,0.03]
[1744791028234,69.5273164,123.9,123.89,0.03]
[1744791028440,88.17696526,123.9,123.89,0.03]
[1744791028940,33.94,123.92,123.89,23.5573164]
[1744791029717,23.5273164,123.91,123.89,0.03]
[1744791030318,43.5273164,123.9,123.89,0.03]
[1744791030640,20.0,123.9,123.89,0.03]
[1744791030946,43.5273164,123.9,123.89,0.03]
[1744791031141,69.5273164,123.9,123.89,0.03]
[1744791031450,96.24799028,123.9,123.89,0.03]
[1744791032037,77.59834142,123.9,123.89,0.03]
[1744791032746,69.5273164,123.9,123.89,0.03]
[1744791032947,13.96,123.9,123.89,0.03]
[1744791033116,68.02972856,123.92,123.89,0.03]
[1744791033439,251.66,123.93,123.89,34.96610248]
[1744791033645,20.0,123.91,123.89,0.03]
[1744791034015,271.66,123.93,123.9,34.93610248]
[1744791034330,251.66,123.93,123.92,34.93610248]
[1744791034532,20.0,123.97,123.92,34.93610248]
[1744791034734,20.0,123.97,123.94,34.93610248]
[1744791035146,13.96,123.98,123.95,34.93610248]
[1744791035319,13.96,123.98,123.94,34.93610248]
[1744791035521,56.96192361,123.98,123.93,34.93610248]
[1744791035741,13.96,123.98,123.93,34.93610248]
[1744791036151,13.96,123.98,123.94,34.93610248]
[1744791037550,56.96212491,123.98,123.93,34.93610248]
[1744791037749,48.89610248,123.98,123.93,34.93610248]
[1744791038648,56.96195712,123.98,123.93,34.93610248]
[1744791039033,22.02585464,123.98,123.93,34.93610248]
[1744791039330,13.96,123.98,123.94,34.93610248]
[1744791039823,33.96,123.99,123.96,34.93610248]
[1744791040023,33.96,123.99,123.95,34.93610248]
[1744791040430,33.96,123.99,123.96,34.93610248]
[1744791042452,13.96,123.99,123.96,34.93610248]
[1744791042632,13.96,123.99,123.97,34.93610248]
[1744791043034,13.96,123.99,123.92,18.64964886]
[1744791043241,13.96,123.99,123.95,34.93610248]
[1744791043452,34.93610248,123.98,123.93,34.93610248]
[1744791043941,76.96127399,123.99,123.94,34.93610248]
[1744791044129,33.96,123.99,123.95,34.93610248]
[1744791044642,13.96,123.99,123.96,34.93610248]
[1744791045339,13.96,123.99,123.94,8.06809383]
[1744791045545,34.93610248,123.97,123.91,8.07037365]
[1744791045749,34.93610248,123.96,123.89,8.10139128]
[1744791045938,34.93610248,123.96,123.91,34.93610248]
[1744791046448,20.0,123.97,123.9,34.93610248]
[1744791046449,34.93610248,123.95,123.9,34.93610248]
[1744791046846,48.89610248,123.94,123.89,34.96610248]
[1744791047150,34.93610248,123.91,123.89,0.03]
[1744791049652,54.93610248,123.92,123.89,0.03]
[1744791049851,34.93610248,123.91,123.89,0.03]
[1744791050641,80.93610248,123.9,123.89,0.03]
[1744791051455,89.0071275,123.9,123.89,0.03]
[1744791052532,20.0,123.88,123.86,0.3936]
[1744791052740,13.96,123.87,123.86,0.3936]
[1744791053257,48.89610248,123.87,123.86,0.3936]
[1744791053951,13.96,123.87,123.86,0.3936]
[1744791055154,265.8,123.91,123.86,35.32970248]
[1744791055360,265.8,123.91,123.88,34.93610248]
[1744791055858,20.0,123.87,123.86,0.3936]
[1744791056059,54.93610248,123.87,123.86,0.3936]
[1744791056935,20.0,123.87,123.86,0.3936]
[1744791057257,54.93610248,123.9,123.86,0.3936]
[1744791058870,34.93610248,123.89,123.86,0.3936]
[1744791059755,63.00724608,123.9,123.86,0.3936]
[1744791060876,265.8,123.91,123.88,34.93610248]
[1744791061072,265.8,123.91,123.89,34.93610248]
[1744791061374,265.8,123.91,123.9,34.93610248]
[1744791061585,13.96,123.91,123.9,34.93610248]
[1744791062366,13.96,123.91,123.9,43.0071275]
[1744791062875,6.1682,123.98,123.9,43.0071275]
[1744791062876,13.54,123.95,123.9,43.0071275]
[1744791063083,13.54,123.95,123.93,34.93610248]
[1744791063573,13.54,123.95,123.94,34.93610248]
[1744791063946,13.54,123.98,123.94,34.93610248]
[1744791064150,13.54,123.98,123.96,34.93610248]
[1744791064389,13.54,123.98,123.97,34.93610248]
[1744791065459,0.063,123.99,123.97,69.87220496]
[1744791065663,0.063,123.99,123.98,34.93610248]
[1744791066057,0.063,123.99,123.98,61.6515684]
[1744791066377,0.063,124.03,123.99,18.64964886]
[1744791066678,0.063,124.03,124.02,34.93610248]
[1744791068483,0.063,124.03,123.98,8.06581706]
[1744791068656,0.063,124.03,124.01,34.93610248]
[1744791068855,0.063,124.03,124.02,34.93610248]
[1744791070151,34.99910248,124.03,123.96,8.06711842]
[1744791070350,34.99910248,124.03,123.98,34.93610248]
[1744791070761,0.063,124.03,123.98,34.93610248]
[1744791070962,34.99910248,124.03,123.98,34.93610248]
[1744791071161,0.063,124.03,123.99,34.93610248]
[1744791071756,34.99910248,124.03,123.99,34.93610248]
[1744791072279,34.93610248,124.01,123.95,14.50164793]
[1744791072579,28.12589459,124.03,123.99,34.93610248]
[1744791072580,34.99910248,124.03,123.99,34.93610248]
[1744791072766,0.063,124.03,123.99,34.93610248]
[1744791073163,34.99910248,124.03,123.99,34.93610248]
[1744791073366,34.99910248,124.03,123.98,34.93610248]
[1744791075185,34.99910248,124.03,123.96,34.93610248]
[1744791075186,34.93610248,124.01,123.96,34.93610248]
[1744791075988,34.93610248,124.02,123.97,34.93610248]
[1744791076982,34.99910248,124.03,123.98,34.93610248]
[1744791077263,34.93610248,124.02,123.98,34.93610248]
[1744791077772,34.93610248,124.01,123.96,43.00299842]
[1744791078681,34.93610248,124.01,123.96,34.93610248]
[1744791078987,34.93610248,124.01,123.95,8.06748817]
[1744791079180,23.61566927,124.01,123.96,23.61566927]
[1744791079584,23.61566927,124.0,123.95,23.61566927]
[1744791080290,23.61566927,124.0,123.96,23.61566927]
[1744791080493,23.61566927,124.01,123.96,23.61566927]
[1744791080672,23.61566927,124.02,123.97,23.61566927]
[1744791080872,23.61566927,124.01,123.97,23.61566927]
[1744791081177,23.61566927,124.01,123.96,23.61566927]
[1744791081766,23.61566927,124.0,123.95,23.61566927]
[1744791082194,23.61566927,124.0,123.96,23.61566927]
[1744791083272,23.61566927,124.01,123.96,23.61566927]
[1744791084165,23.61566927,124.02,123.97,23.61566927]
[1744791084395,13.0,124.02,123.98,23.61566927]
[1744791084596,13.0,124.02,123.99,23.61566927]
[1744791084767,13.0,124.02,124.0,23.61566927]
[1744791084973,13.0,124.02,124.01,23.61566927]
[1744791085799,13.0,124.02,123.98,18.64964886]
[1744791086094,13.0,124.02,124.0,23.61566927]
[1744791086279,13.0,124.02,124.01,23.61566927]
[1744791086673,13.0,124.02,124.0,31.67953634]
[1744791087808,13.0,124.02,124.01,31.67953508]
[1744791089799,13.0,124.02,124.0,23.61566927]
[1744791091818,13.0,124.02,124.01,23.61566927]
[1744791092108,0.063,124.03,124.02,8.06321561]
[1744791092803,0.063,124.03,124.02,31.67888488]
[1744791093986,0.063,124.03,124.02,8.06321561]
[1744791095204,0.063,124.03,124.01,8.06364322]
[1744791098119,23.61566927,124.02,123.97,28.23228836]
[1744791098322,23.61566927,124.02,123.97,51.84795763]
[1744791098696,23.61566927,124.02,123.98,23.61566927]
[1744791099122,23.61566927,124.02,123.99,8.06516654]
[1744791099324,23.61566927,124.01,123.97,23.61566927]
[1744791099533,23.61566927,124.01,123.96,31.68278769]
[1744791100027,6.1372,124.03,123.97,23.61566927]
[1744791100221,23.61566927,124.02,123.97,23.61566927]
[1744791100395,36.61566927,124.01,123.97,23.61566927]
[1744791101525,36.61566927,124.01,123.98,8.06581706]
[1744791102414,23.61566927,124.0,123.93,40.37433698]
[1744791102721,23.61566927,123.99,123.94,70.50478883]
[1744791103625,23.61566927,124.0,123.95,23.61566927]
[1744791104231,36.61566927,124.01,123.96,23.61566927]
[1744791104416,23.61566927,124.0,123.95,23.61566927]
[1744791105013,23.61566927,123.98,123.94,8.0684202]
[1744791105213,20.0,124.0,123.94,8.0684202]
[1744791105214,23.61566927,123.97,123.94,8.0684202]
[1744791105832,20.0,124.0,123.93,0.03]
[1744791105833,23.61566927,123.96,123.93,8.09907124]
[1744791106127,23.61566927,123.95,123.93,0.03]
[1744791106333,23.61566927,123.94,123.93,0.03]
[1744791106923,36.61566927,123.96,123.93,0.03]
[1744791107803,23.61566927,123.95,123.93,0.03]
[1744791108634,36.61566927,123.96,123.93,0.03]
[1744791109308,13.0,123.96,123.94,23.61566927]
[1744791110035,13.0,123.96,123.95,8.06776926]
[1744791110234,13.0,124.0,123.95,51.85286168]
[1744791110434,13.0,124.0,123.96,23.61566927]
[1744791110731,13.0,124.0,123.97,23.61566927]
[1744791110924,13.0,124.0,123.98,23.61566927]
[1744791111521,13.0,124.0,123.95,28.23719241]
[1744791111722,13.0,124.0,123.96,23.61566927]
[1744791112125,13.0,124.0,123.97,31.68213696]
[1744791112435,13.0,124.0,123.96,31.68265821]
[1744791112633,23.61566927,123.99,123.94,8.0684202]
[1744791112818,23.61566927,123.99,123.94,31.68408947]
[1744791113532,13.0,124.0,123.94,31.68408947]
[1744791113730,23.61566927,123.99,123.94,31.68408947]
[1744791115934,13.0,124.0,123.94,31.68408947]
[1744791116142,23.61566927,123.99,123.94,31.68408947]
[1744791116938,0.063,124.03,123.98,23.61566927]
[1744791117144,0.063,124.03,124.0,23.61566927]
[1744791117728,0.063,124.03,124.01,23.61566927]
[1744791119047,0.063,124.03,124.02,8.06321561]
[1744791119248,0.063,124.03,124.0,8.06451612]
[1744791119933,23.61566927,124.01,123.98,8.06581706]
[1744791120451,36.13566927,124.01,123.98,8.06581706]
[1744791120750,23.61566927,123.99,123.97,8.06618107]
[1744791120933,18.9618,124.01,123.97,8.06618107]
[1744791120934,23.61566927,123.98,123.97,8.06618107]
[1744791121249,23.61566927,123.98,123.94,8.0684202]
[1744791122151,38.9618,124.01,123.94,8.0684202]
[1744791122453,23.61566927,123.96,123.93,8.09890393]
[1744791122630,36.13566927,123.96,123.93,8.09890393]
[1744791122829,23.61566927,123.94,123.93,0.03]
[1744791123541,31.35586927,123.94,123.93,0.03]
[1744791125655,12.52,123.96,123.93,0.03]
[1744791126126,12.52,123.96,123.93,23.64566927]
[1744791126332,12.52,123.96,123.95,23.61566927]
[1744791126633,56.13566927,124.0,123.95,23.61566927]
[1744791127755,56.13566927,124.0,123.96,8.06711842]
[1744791127941,56.13566927,124.0,123.95,31.68325999]
[1744791128451,23.61566927,123.98,123.93,23.64566927]
[1744791128657,23.61566927,123.98,123.93,31.71445942]
[1744791130156,23.61566927,123.98,123.93,8.09879015]
[1744791130340,23.61566927,123.98,123.93,31.71445942]
[1744791131656,23.61566927,123.96,123.93,0.03]
[1744791131855,36.13566927,123.95,123.93,0.03]
[1744791132543,23.61566927,123.94,123.93,0.03]
[1744791132749,43.61566927,123.94,123.93,0.03]
[1744791133056,23.61566927,123.94,123.93,0.03]
[1744791133234,12.52,123.95,123.93,0.03]
[1744791133668,36.13566927,123.95,123.93,0.03]
[1744791134063,23.61566927,123.94,123.93,0.03]
[1744791136570,12.52,123.95,123.93,23.64566927]
[1744791136739,12.52,123.95,123.94,23.61566927]
[1744791138263,12.52,123.95,123.94,31.68408947]
[1744791139766,12.52,123.99,123.94,31.68408947]
[1744791139945,12.52,123.99,123.95,23.61566927]
[1744791142249,36.13566927,123.99,123.94,31.68348251]
[1744791142860,23.61566927,123.98,123.93,31.71460894]
[1744791143057,40.58519475,123.99,123.93,0.03]
[1744791143058,23.61566927,123.94,123.93,0.03]
[1744791143455,36.13566927,123.94,123.93,0.03]
[1744791143657,12.52,123.94,123.93,0.03]
[1744791145552,12.52,123.94,123.93,23.64566927]
[1744791145955,12.52,123.94,123.93,0.03]
[1744791146161,12.52,123.94,123.93,8.09907124]
[1744791146472,12.52,123.94,123.93,0.03]
[1744791146853,23.61566927,123.96,123.93,0.03]
[1744791147056,12.28,123.95,123.93,0.03]
[1744791147370,12.28,123.95,123.93,23.64566927]
[1744791147670,12.28,123.95,123.94,23.61566927]
[1744791148376,12.28,123.95,123.94,31.68408947]
[1744791150456,38.28,123.99,123.94,31.68408947]
[1744791150657,38.28,123.99,123.95,23.61566927]
[1744791150978,38.28,123.99,123.95,31.68290447]
[1744791151166,61.89566927,123.99,123.95,8.0672352]
[1744791151559,12.28,123.99,123.95,31.68290447]
[1744791152679,35.89566927,123.99,123.95,8.0672352]
[1744791153479,12.28,123.99,123.95,31.68290447]
[1744791153670,12.28,123.99,123.97,23.61566927]
[1744791153874,12.28,123.99,123.98,23.61566927]
[1744791154269,251.74,124.02,123.98,23.61566927]
[1744791154470,251.74,124.02,123.99,23.61566927]
[1744791154678,251.74,124.02,123.96,18.64964886]
[1744791154875,251.74,124.02,123.99,23.61566927]
[1744791155484,251.74,124.02,124.0,8.06451612]
[1744791155685,251.74,124.02,124.0,31.68018539]
[1744791155884,12.343,124.03,124.01,23.61566927]
[1744791156683,12.343,124.03,124.02,23.61566927]
[1744791156980,12.343,124.03,124.01,23.61566927]
[1744791157364,12.343,124.03,124.02,31.67888488]
[1744791158678,0.063,124.03,124.02,31.67888488]
[1744791160768,0.063,124.03,124.02,8.06321561]
[1744791160974,23.67866927,124.03,123.98,20.16414985]
[1744791161194,0.063,124.03,124.0,23.61566927]
[1744791161575,0.063,124.03,124.02,23.61566927]
[1744791162692,0.063,124.03,124.02,31.67888488]
[1744791162895,0.063,124.03,124.0,23.61566927]
[1744791163100,0.063,124.03,123.99,23.61566927]
[1744791163395,23.67866927,124.03,123.98,51.84576167]
[1744791164796,0.063,124.03,123.99,23.61566927]
[1744791165177,0.063,124.03,123.98,22.82046937]
[1744791165178,14.81765231,124.03,123.98,22.82046937]
[1744791165388,14.75465231,124.01,123.97,8.06627985]
[1744791165573,14.75465231,124.0,123.95,14.75465231]
[1744791165880,12.28,124.0,123.96,14.75465231]
[1744791166782,27.03465231,124.0,123.96,8.06711842]
[1744791167200,12.28,124.0,123.96,31.68378584]
[1744791167791,35.89666742,124.0,123.96,8.06711842]
[1744791167990,12.28,124.0,123.96,31.68378584]
[1744791168290,12.28,124.0,123.97,23.61666742]
[1744791168795,12.28,124.0,123.98,8.06581706]
[1744791173601,12.28,124.0,123.97,8.06646769]
[1744791174507,12.28,124.0,123.98,23.61666742]
[1744791174702,12.28,124.0,123.97,31.68313511]
[1744791180409,23.61666742,123.98,123.94,8.0684202]
[1744791180609,23.61666742,123.99,123.94,31.68508762]
[1744791180811,12.28,124.0,123.97,23.61666742]
[1744791181394,12.28,124.0,123.98,23.61666742]
[1744791182188,12.28,124.0,123.96,8.06711842]
[1744791182506,12.28,124.0,123.96,31.68378584]
[1744791182700,12.28,124.0,123.98,23.61666742]
[1744791183104,12.28,124.0,123.97,23.61666742]
[1744791184411,12.28,124.0,123.98,8.06581706]
[1744791185617,12.28,124.0,123.96,43.78446348]
[1744791186001,12.28,124.0,123.97,23.61666742]
[1744791187923,12.28,124.0,123.98,8.06581706]
[1744791191322,14.7595144,123.99,123.94,8.0684202]
[1744791191617,14.7595144,123.97,123.94,8.0684202]
[1744791191927,14.7595144,123.98,123.94,8.0684202]
[1744791192132,20.34465335,124.0,123.94,8.0684202]
[1744791192304,14.7595144,123.98,123.94,8.0684202]
[1744791193206,14.7595144,123.97,123.94,8.0684202]
[1744791193414,8.06589739,123.98,123.93,0.03]
[1744791193415,14.7595144,123.96,123.93,8.09874859]
[1744791193623,11.9,123.95,123.93,8.09874859]
[1744791193944,26.6595144,123.95,123.93,8.09874859]
[1744791194113,26.6595144,123.95,123.93,0.03]
[1744791194318,14.7595144,123.94,123.93,0.03]
[1744791194541,22.8279346,123.94,123.93,0.03]
[1744791195252,67.47758346,123.94,123.93,0.03]
[1744791195554,20.0,123.91,123.9,0.03]
[1744791195716,60.7595144,123.91,123.9,0.03]
[1744791195913,46.0,123.89,123.88,0.03]
[1744791196141,44.64964886,123.86,123.75,2.0]
[1744791196348,20.0,123.83,123.76,8.08015513]
[1744791196517,20.0,123.83,123.77,14.7595144]
[1744791196518,11.9,123.82,123.77,14.7595144]
[1744791196725,14.7595144,123.81,123.76,8.08015513]
[1744791196923,14.7595144,123.79,123.76,8.08015513]
[1744791197128,14.7595144,123.79,123.75,2.0]
[1744791197129,14.7595144,123.79,123.75,9.58058577]
[1744791197321,34.7595144,123.79,123.75,1.5]
[1744791197743,20.0,123.79,123.75,16.2595144]
[1744791197935,34.7595144,123.79,123.75,1.5]
[1744791198426,14.7595144,123.77,123.75,1.5]
[1744791198635,46.6595144,123.76,123.75,1.5]
[1744791198932,31.9,123.76,123.75,1.5]
[1744791199244,55.61638054,123.76,123.75,1.5]
[1744791200528,271.86,123.77,123.75,1.5]
[1744791200846,20.0,123.81,123.76,23.71638054]
[1744791201037,11.9,123.8,123.77,23.71638054]
[1744791201634,11.9,123.8,123.78,23.71638054]
[1744791202351,279.7056,123.85,123.8,8.07754442]
[1744791202552,11.9,123.83,123.8,31.79392496]
[1744791202755,11.9,123.83,123.82,23.71638054]
[1744791203449,11.92,123.87,123.82,23.71638054]
[1744791203634,11.92,123.87,123.85,23.71638054]
[1744791203836,11.92,123.87,123.84,23.71638054]
[1744791204341,11.92,123.87,123.84,8.0749354]
[1744791205254,11.92,123.87,123.84,31.79131594]
[1744791206232,11.92,123.87,123.84,8.0749354]
[1744791206644,23.71638054,123.85,123.79,28.27220645]
[1744791206848,23.71638054,123.82,123.79,8.07819694]
[1744791207056,11.94,123.81,123.79,8.07819694]
[1744791207437,11.94,123.81,123.8,23.71638054]
[1744791207857,11.94,123.81,123.79,31.79457748]
[1744791208031,11.94,123.81,123.8,23.71638054]
[1744791208235,11.94,123.81,123.79,31.79457748]
[1744791208858,11.94,123.81,123.8,23.71638054]
[1744791209154,11.94,123.81,123.79,8.07819694]
[1744791209535,11.94,123.81,123.79,31.79457748]
[1744791209734,11.94,123.81,123.79,8.07819694]
[1744791210463,11.94,123.81,123.78,8.07872072]
[1744791210645,23.71638054,123.8,123.75,25.21638054]
[1744791210848,11.94,123.81,123.76,31.79653567]
[1744791211055,11.94,123.81,123.78,23.71638054]
[1744791211249,11.94,123.81,123.77,23.71638054]
[1744791211449,35.65638054,123.81,123.76,31.79653567]
[1744791211958,11.94,123.81,123.77,23.71638054]
[1744791212266,35.65638054,123.81,123.76,31.79653567]
[1744791212645,11.94,123.81,123.77,23.71638054]
[1744791212835,11.94,123.81,123.78,23.71638054]
[1744791213035,11.94,123.81,123.77,23.71638054]
[1744791213752,11.94,123.81,123.78,23.71638054]
[1744791213942,11.94,123.81,123.77,23.71638054]
[1744791214145,11.94,123.81,123.78,8.07884957]
[1744791215254,11.94,123.81,123.78,31.79523011]
[1744791215654,11.94,123.81,123.79,23.71638054]
[1744791215850,11.94,123.81,123.78,31.79523011]
[1744791216064,11.94,123.81,123.79,23.71638054]
[1744791216244,11.94,123.81,123.8,31.79392496]
[1744791216952,11.94,123.81,123.8,8.07754442]
[1744791217265,11.94,123.81,123.8,31.79392496]
[1744791218471,11.94,123.81,123.8,8.07754442]
[1744791218646,11.94,123.81,123.8,31.79392496]
[1744791218961,11.94,123.81,123.79,8.07791022]
[1744791219163,11.94,123.81,123.75,1.5]
[1744791219164,23.71638054,123.8,123.75,25.21638054]
[1744791219343,23.71638054,123.8,123.76,8.07988848]
[1744791219545,23.71638054,123.79,123.75,9.58061936]
[1744791220970,28.07760869,123.8,123.75,9.58061936]
[1744791221169,43.71638054,123.77,123.75,1.5]
[1744791221357,35.65638054,123.76,123.75,1.5]
[1744791221559,61.65638054,123.76,123.75,1.5]
[1744791222579,145.28618453,123.76,123.75,1.5]
[1744791222749,169.00256507,123.76,123.75,1.5]
[1744791222953,20.0,123.71,123.7,0.111]
[1744791223177,55.65638054,123.71,123.7,0.111]
[1744791223780,81.65638054,123.71,123.7,0.111]
[1744791224155,20.0,123.65,123.64,0.15]
[1744791224358,55.65638054,123.65,123.64,0.15]
[1744791224575,11.94,123.65,123.64,0.15]
[1744791225386,55.65638054,123.65,123.64,0.15]
[1744791225586,31.94,123.65,123.64,0.15]
[1744791225788,55.65638054,123.65,123.64,0.15]
[1744791226079,43.71638054,123.65,123.64,0.15]
[1744791226392,55.65638054,123.65,123.64,0.15]
[1744791226555,55.65638054,123.65,123.56,20.23299616]
[1744791226556,46.0,123.58,123.48,9.64357748]
[1744791226759,11.94,123.57,123.5,20.24193563]
[1744791226958,11.94,123.57,123.56,23.71638054]
[1744791227196,11.94,123.57,123.51,26.0]
[1744791227483,35.65638054,123.57,123.52,23.71638054]
[1744791227677,11.94,123.57,123.53,23.71638054]
[1744791227868,11.94,123.57,123.55,23.71638054]
[1744791228056,11.94,123.57,123.5,38.89158449]
[1744791228262,20.0,123.56,123.51,23.71638054]
[1744791228581,11.96,123.56,123.53,23.71638054]
[1744791228786,11.96,123.56,123.5,8.09716599]
[1744791229479,11.96,123.56,123.53,23.71638054]